bitfinex-derivatives/quotes_SOLF0:USTF0_20250124
["timestamp","ask_amount","ask_price","bid_price","bid_amount"]
[1737716064732,0.02483788,264.0,263.95,0.02695617]
[1737716064928,5.73678402,263.99,263.95,0.02695617]
[1737716065230,5.73678402,263.96,263.95,0.02695617]
[1737716066329,9.52538402,263.96,263.95,0.02695617]
[1737716066830,9.52538402,263.96,263.95,0.00292072]
[1737716067732,5.73678402,263.96,263.95,0.00292072]
[1737716068226,5.73678402,263.99,263.95,0.00292072]
[1737716068426,0.02483788,264.0,263.95,0.00292072]
[1737716069328,5.73678402,263.99,263.95,0.00292072]
[1737716069729,0.02483788,264.0,263.95,0.00292072]
[1737716071132,3.7886,263.96,263.95,0.00292072]
[1737716071831,0.02483788,264.0,263.95,0.00292072]
[1737716072032,3.7884,263.98,263.95,0.00292072]
[1737716072731,0.02483788,264.0,263.95,0.00292072]
[1737716072732,3.7886,263.97,263.95,0.00292072]
[1737716073630,3.7886,263.96,263.95,0.00292072]
[1737716076331,968.7886,263.96,263.95,0.00292072]
[1737716076628,965.0,263.96,263.83,7.6512]
[1737716076835,8.95615956,263.99,263.83,5.1709]
[1737716076836,8.95615956,263.93,263.83,5.1709]
[1737716077436,3.79,263.87,263.83,5.1709]
[1737716077637,3.79,263.87,263.85,0.02393243]
[1737716079933,0.02471531,263.91,263.85,0.02393243]
[1737716080132,3.79,263.86,263.85,0.02393243]
[1737716080737,8.95615956,263.89,263.85,0.02393243]
[1737716080939,0.02471531,263.91,263.85,0.02393243]
[1737716081535,3.79,263.86,263.85,0.02393243]
[1737716083140,0.02471531,263.91,263.85,0.02393243]
[1737716084039,3.7896,263.89,263.85,0.02393243]
[1737716084931,0.02471531,263.91,263.85,0.02393243]
[1737716085131,3.7895,263.9,263.85,0.02393243]
[1737716086342,0.02471531,263.91,263.85,0.02393243]
[1737716086641,3.7897,263.89,263.85,0.02393243]
[1737716087233,0.02471531,263.91,263.85,0.02393243]
[1737716087841,0.02471531,263.91,263.86,3.79]
[1737716088039,0.02471531,263.91,263.87,5.1978]
[1737716088343,8.95615956,264.02,263.87,5.1978]
[1737716089140,3.7883,263.98,263.88,3.7897]
[1737716089542,0.02547033,263.96,263.9,0.02514309]
[1737716091745,0.02547033,263.96,263.9,3.81444309]
[1737716091945,0.02547033,263.96,263.9,0.02514309]
[1737716093246,0.02547033,263.96,263.92,3.7891]
[1737716093442,3.7882,263.99,263.92,3.7891]
[1737716094550,0.02644412,263.98,263.92,3.7891]
[1737716094843,0.02644412,263.98,263.93,3.789]
[1737716095253,0.02644412,263.98,263.9,0.02514309]
[1737716095449,0.02644412,263.98,263.92,3.7891]
[1737716095645,0.02644412,263.98,263.94,5.7297933]
[1737716096343,5.7297933,264.13,263.97,5.7297933]
[1737716096549,5.7297933,264.13,264.03,5.7297933]
[1737716097444,5.7297933,264.16,264.06,5.7297933]
[1737716097649,0.02809271,264.11,264.06,5.7297933]
[1737716098247,3.7855,264.18,264.09,9.5164933]
[1737716098449,5.7297933,264.19,264.09,9.5164933]
[1737716099158,3.7856,264.17,264.09,9.5164933]
[1737716099359,5.7297933,264.19,264.09,9.5164933]
[1737716099360,5.7297933,264.19,264.1,3.81551638]
[1737716099657,0.02891462,264.16,264.1,3.81551638]
[1737716099857,8.9422497,264.24,264.1,3.7866]
[1737716100054,0.02779644,264.16,264.1,3.81488779]
[1737716100255,0.02779644,264.16,264.12,3.7862]
[1737716100457,0.02779644,264.16,264.1,0.02828779]
[1737716101258,8.97004614,264.16,264.1,0.02828779]
[1737716101658,0.02779644,264.16,264.1,0.02828779]
[1737716102461,3.7862,264.13,264.1,0.02828779]
[1737716102657,0.02779644,264.16,264.1,0.02828779]
[1737716102864,8.97004614,264.16,264.1,0.02828779]
[1737716103663,12.7285497,264.12,264.1,8.779e-05]
[1737716106366,8.9422497,264.12,263.99,5.0708]
[1737716106568,3.7874,264.05,263.99,5.0708]
[1737716107069,3.7875,264.04,263.99,5.0708]
[1737716107567,3.81527719,264.04,263.99,5.09478789]
[1737716107767,0.02777719,264.04,263.99,0.02398789]
[1737716107971,3.7879,264.01,263.99,0.02398789]
[1737716109266,8.97002689,264.04,263.99,0.02398789]
[1737716109267,0.02777719,264.04,263.99,0.02398789]
[1737716110859,8.9422497,264.16,264.0,8.9422497]
[1737716111163,8.9422497,264.2,264.04,8.9422497]
[1737716111469,12.7269497,264.24,264.12,3.7862]
[1737716111662,8.9422497,264.24,264.08,8.9422497]
[1737716111860,8.9422497,264.28,264.08,8.9422497]
[1737716112061,0.02413948,264.19,264.13,0.0244719]
[1737716112470,0.02413948,264.19,264.14,3.786]
[1737716112975,0.02413948,264.19,264.13,0.0244719]
[1737716113174,0.02413948,264.19,264.15,3.7858]
[1737716114373,8.9422497,264.28,264.16,3.7857]
[1737716114671,8.9422497,264.32,264.14,2.638]
[1737716114869,3.7843,264.26,264.15,3.7858]
[1737716115576,0.02511364,264.23,264.18,0.02683204]
[1737716120977,3.7849,264.22,264.18,0.02683204]
[1737716121182,0.02511364,264.23,264.18,0.02683204]
[1737716121586,3.7853,264.19,264.18,0.02683204]
[1737716123585,0.02511364,264.23,264.18,0.02683204]
[1737716123786,3.7851,264.21,264.18,0.02683204]
[1737716124389,0.02511364,264.23,264.18,0.02683204]
[1737716124587,3.80991364,264.23,264.18,0.02683204]
[1737716125087,0.02511364,264.23,264.18,0.02683204]
[1737716130784,3.7853,264.2,264.18,0.02683204]
[1737716131289,0.02511364,264.23,264.18,0.02683204]
[1737716131986,3.7853,264.2,264.18,0.02683204]
[1737716133291,0.02511364,264.23,264.18,0.02683204]
[1737716133491,12.7275497,264.19,264.18,0.02683204]
[1737716133789,12.7275497,264.19,264.18,3.204e-05]
[1737716134692,191.0,264.22,264.18,3.204e-05]
[1737716134990,0.02511364,264.23,264.18,3.204e-05]
[1737716136992,8.9422497,264.37,264.19,8.9422497]
[1737716137388,3.7835,264.32,264.19,143.2025329]
[1737716137785,3.7836,264.31,264.19,143.2025329]
[1737716137991,0.02484431,264.28,264.23,3.81125312]
[1737716138793,0.02484431,264.28,264.23,0.02655312]
[1737716139395,0.02484431,264.28,264.24,3.7845]
[1737716139594,8.9422497,264.37,264.23,0.02655312]
[1737716139991,3.7833,264.33,264.25,3.7844]
[1737716140192,3.7833,264.33,264.21,130.4750832]
[1737716140593,3.7834,264.32,264.24,3.7846]
[1737716140798,0.02843216,264.3,264.24,3.81223251]
[1737716141099,0.02843216,264.3,264.24,0.02763251]
[1737716141996,3.81213216,264.3,264.24,0.02763251]
[1737716142792,3.7841,264.28,264.24,0.02763251]
[1737716143190,0.02843216,264.3,264.24,0.02763251]
[1737716143398,3.81223216,264.3,264.24,0.02763251]
[1737716144195,3.7839,264.29,264.24,0.02763251]
[1737716144401,0.02843216,264.3,264.24,3.81213251]
[1737716144601,0.02843216,264.3,264.24,0.02763251]
[1737716144902,3.81213216,264.3,264.24,0.02763251]
[1737716145800,0.02843216,264.3,264.24,0.02763251]
[1737716146103,0.02843216,264.3,264.24,130.50271571]
[1737716147000,0.02843216,264.3,264.24,0.02763251]
[1737716148105,8.9422497,264.29,264.24,0.02763251]
[1737716149209,3.7844,264.25,264.24,0.02763251]
[1737716152913,3.7844,264.25,264.24,3.251e-05]
[1737716156514,12.7266497,264.25,264.24,3.251e-05]
[1737716161118,8.9422497,264.25,264.1,130.4750832]
[1737716161319,8.9422497,264.18,264.1,130.4750832]
[1737716162018,8.9422497,264.18,264.09,5.1714]
[1737716162214,8.9422497,264.18,264.11,0.02910652]
[1737716162215,3.7863,264.13,264.11,0.02910652]
[1737716162919,3.7862,264.13,264.11,0.02910652]
[1737716164921,3.7863,264.12,264.11,0.02910652]
[1737716168528,191.0,264.16,264.02,5.3091]
[1737716168529,8.9422497,264.13,264.02,5.3091]
[1737716168729,3.7875,264.04,264.02,5.3091]
[1737716169429,3.7873,264.05,264.02,5.3091]
[1737716170627,0.02605777,264.06,264.02,5.3091]
[1737716172229,199.9422497,264.16,264.02,5.3091]
[1737716172931,3.7863,264.12,264.03,3.7876]
[1737716173432,0.02495754,264.1,264.05,0.02683702]
[1737716174424,0.02495754,264.1,264.06,3.787]
[1737716176736,0.02495754,264.1,264.07,3.787]
[1737716177237,191.0,264.16,264.05,0.02683702]
[1737716177535,3.7859,264.15,264.08,3.7868]
[1737716177735,3.7859,264.15,264.05,0.02683702]
[1737716177932,191.0,264.16,264.05,0.02683702]
[1737716178137,3.7856,264.17,264.05,0.02683702]
[1737716178337,8.9422497,264.24,264.07,8.9422497]
[1737716178533,0.0248638,264.14,264.08,2.4444]
[1737716178735,0.0248638,264.14,264.13,0.02677072]
[1737716179435,0.0248638,264.14,264.13,7.072e-05]
[1737716179641,3.7868,264.09,263.99,3.7882]
[1737716179836,191.0,264.14,263.99,3.7882]
[1737716180839,0.02887555,264.09,264.04,0.02720397]
[1737716181039,3.7873,264.05,264.04,0.02720397]
[1737716190949,3.81567555,264.09,264.04,0.02720397]
[1737716193553,3.7873,264.05,264.04,0.02720397]
[1737716197260,3.7875,264.04,263.97,130.17302717]
[1737716198064,3.7875,264.04,263.96,6.2215]
[1737716198562,3.81189675,264.03,263.97,0.02867846]
[1737716199363,0.02419675,264.03,263.97,0.02867846]
[1737716199562,3.7877,264.02,263.97,0.02867846]
[1737716200062,199.9422497,264.14,263.97,8.97092816]
[1737716200258,199.9422497,264.14,263.97,8.9422497]
[1737716201262,0.02719558,264.08,264.03,0.02419348]
[1737716201665,5.75501581,264.08,264.03,0.02419348]
[1737716202060,3.7872,264.06,264.03,0.02419348]
[1737716204064,3.7872,264.07,264.03,0.02419348]
[1737716204764,3.7872,264.06,264.03,0.02419348]
[1737716205866,5.75501581,264.08,264.03,0.02419348]
[1737716206067,0.02719558,264.08,264.05,3.7873]
[1737716207463,0.02719558,264.08,264.04,3.7874]
[1737716208369,3.81409558,264.08,264.03,0.02419348]
[1737716208563,5.75501581,264.08,264.03,0.02419348]
[1737716211068,3.7872,264.06,264.03,0.02419348]
[1737716214473,3.81419558,264.08,264.03,0.02419348]
[1737716214671,0.02719558,264.08,264.03,0.02419348]
[1737716215072,0.02719558,264.08,264.04,3.7874]
[1737716216071,0.02719558,264.08,264.05,3.7872]
[1737716216768,0.02719558,264.08,264.04,9.51522023]
[1737716216967,0.02719558,264.08,264.04,141.11503476]
[1737716217376,0.02719558,264.08,264.04,131.59981453]
[1737716218073,0.02719558,264.08,264.05,131.59981453]
[1737716220980,5.75501581,264.08,264.05,131.59981453]
[1737716221377,5.75501581,264.08,264.03,0.02419348]
[1737716221578,5.72782023,264.05,264.03,0.02419348]
[1737716223477,3.7874,264.04,264.03,0.02419348]
[1737716225680,484.7874,264.04,264.03,0.02419348]
[1737716227178,481.0,264.04,264.03,0.02419348]
[1737716234683,490.51522023,264.04,264.03,0.02419348]
[1737716235195,481.0,264.04,264.03,0.02419348]
[1737716236385,456.73669675,264.04,264.03,3.81179348]
[1737716236586,452.74909675,264.04,264.03,3.81179348]
[1737716238090,452.74909675,264.04,264.03,0.02419348]
[1737716239387,452.74909675,264.04,264.03,131.77977766]
[1737716242190,452.74909675,264.04,264.03,0.02419348]
[1737716243089,452.74909675,264.04,264.03,131.77977766]
[1737716243390,3.7872,264.06,264.03,131.77977766]
[1737716247387,0.02719558,264.08,264.03,131.77977766]
[1737716247594,3.787,264.07,264.03,131.77977766]
[1737716249389,3.787,264.07,264.03,0.02419348]
[1737716253996,3.787,264.07,264.03,131.77977766]
[1737716255799,3.7873,264.05,264.03,131.77977766]
[1737716256191,3.7873,264.05,264.03,0.02419348]
[1737716258700,3.7874,264.04,264.03,0.02419348]
[1737716260196,5.72782023,264.06,264.03,0.02419348]
[1737716262804,5.72782023,264.06,264.03,131.77977766]
[1737716263603,5.72782023,264.06,264.04,131.75558418]
[1737716264102,5.72782023,264.06,264.03,131.77977766]
[1737716265703,5.72782023,264.06,264.03,0.02419348]
[1737716269113,9.51502023,264.06,264.03,0.02419348]
[1737716269411,5.72782023,264.06,264.03,0.02419348]
[1737716269607,0.02719558,264.08,264.03,3.81179348]
[1737716269906,0.02719558,264.08,264.03,131.77977766]
[1737716270104,0.02719558,264.08,264.03,135.56717766]
[1737716270306,0.02719558,264.08,264.03,131.77977766]
[1737716270510,0.02719558,264.08,264.04,131.75558418]
[1737716271411,0.02719558,264.08,264.03,135.56727766]
[1737716272406,0.02719558,264.08,264.03,131.77977766]
[1737716272710,0.02719558,264.08,264.04,3.7874]
[1737716273212,0.02719558,264.08,264.05,3.7872]
[1737716273508,0.02719558,264.08,264.04,131.75558418]
[1737716274009,0.02719558,264.08,264.07,3.787]
[1737716275409,0.02719558,264.08,264.05,131.75558418]
[1737716275603,0.02719558,264.08,264.06,3.7871]
[1737716275808,0.02719558,264.08,264.05,131.75558418]
[1737716276003,5.72782023,264.07,264.05,131.75558418]
[1737716276711,5.72782023,264.07,264.03,0.02419348]
[1737716278911,3.7873,264.05,264.03,0.02419348]
[1737716280811,3.7874,264.04,264.03,0.02419348]
[1737716281011,9.51522023,264.04,264.03,0.02419348]
[1737716283319,5.72782023,264.07,264.03,0.02419348]
[1737716283519,0.02719558,264.08,264.03,5.75201371]
[1737716284125,0.02719558,264.08,264.07,3.787]
[1737716286719,8.20132023,264.23,264.13,3.7861]
[1737716286921,3.785,264.21,264.14,5.72782023]
[1737716287123,5.72782023,264.26,264.17,5.72782023]
[1737716287318,5.72782023,264.23,264.02,131.75558418]
[1737716287519,5.72782023,264.1,264.02,131.75558418]
[1737716287827,5.72782023,264.07,264.03,0.02404088]
[1737716288016,3.7873,264.05,263.96,131.75558418]
[1737716288219,5.72782023,264.04,264.02,0.02615695]
[1737716288415,5.72782023,264.1,263.98,5.72782023]
[1737716288620,0.02718557,264.06,264.01,5.72782023]
[1737716288823,3.7865,264.11,264.02,3.7876]
[1737716289019,0.02388685,264.06,264.02,3.7876]
[1737716289326,0.02388685,264.06,264.02,135.54318418]
[1737716289525,0.02388685,264.06,264.02,131.75558418]
[1737716289722,0.02388685,264.06,264.03,3.7876]
[1737716290224,0.02388685,264.06,264.04,3.7874]
[1737716290525,0.02388685,264.06,264.04,131.75558418]
[1737716291725,0.02388685,264.06,264.04,141.27080441]
[1737716292526,0.02388685,264.06,264.04,9.51522023]
[1737716294322,0.02388685,264.06,264.04,3.7874]
[1737716294519,0.02388685,264.06,264.05,131.51977715]
[1737716295430,0.02388685,264.06,264.04,9.51522023]
[1737716296921,0.02388685,264.06,264.04,3.7874]
[1737716297730,0.02388685,264.06,264.03,30.30142045]
[1737716297930,0.02388685,264.06,264.05,3.7873]
[1737716301832,0.02388685,264.06,264.05,135.30779745]
[1737716302331,0.02388685,264.06,264.05,3.7873]
[1737716302932,936.7729836,264.06,264.05,3.7873]
[1737716306038,932.7849836,264.06,264.05,3.7873]
[1737716308030,853.56006349,264.06,264.05,3.7873]
[1737716309035,845.79616349,264.06,264.05,3.7873]
[1737716309628,840.00286349,264.06,264.05,12.73477612]
[1737716309833,734.29011726,264.06,264.05,12.73477612]
[1737716310136,644.85704377,264.06,264.05,12.73477612]
[1737716310728,637.22144377,264.06,264.05,12.73477612]
[1737716310932,611.76744377,264.06,264.05,12.73477612]
[1737716311133,602.61894377,264.06,264.05,12.73477612]
[1737716311437,1083.61894377,264.06,264.05,12.73477612]
[1737716311838,1063.28554377,264.06,264.05,12.73477612]
[1737716312030,1049.49034377,264.06,264.05,12.73477612]
[1737716312231,1043.27334377,264.06,264.05,12.73477612]
[1737716312530,938.54382405,264.06,264.05,12.73477612]
[1737716312736,932.32982405,264.06,264.05,12.73477612]
[1737716312935,913.59092405,264.06,264.05,12.73477612]
[1737716313142,894.85432405,264.06,264.05,12.73477612]
[1737716313633,894.85432405,264.06,264.05,3.7873]
[1737716314738,815.65708296,264.06,264.05,3.7873]
[1737716315638,737.46133673,264.06,264.05,3.7873]
[1737716316940,1144.23292688,264.06,264.05,3.7873]
[1737716317141,1132.06902688,264.06,264.05,3.7873]
[1737716317442,1125.98782688,264.06,264.05,3.7873]
[1737716317832,1102.70422688,264.06,264.05,4.46768788]
[1737716318038,1086.75342688,264.06,264.05,4.46768788]
[1737716318241,1086.75342688,264.06,264.05,3.7873]
[1737716318536,1033.96481701,264.06,264.05,4.46773973]
[1737716318742,1026.56741701,264.06,264.05,3.7873]
[1737716318942,1004.37751701,264.06,264.05,4.46800308]
[1737716319241,990.21001701,264.06,264.05,4.46800308]
[1737716319437,990.21001701,264.06,264.05,3.7873]
[1737716319642,938.26910716,264.06,264.05,4.46614918]
[1737716319934,897.86990716,264.06,264.05,4.46614918]
[1737716320340,864.4627708,264.06,264.05,4.46614918]
[1737716320644,850.84470347,264.06,264.05,4.46614918]
[1737716320841,813.38290347,264.06,264.05,4.46614918]
[1737716321142,796.03540347,264.06,264.05,4.46614918]
[1737716321543,743.2467936,264.06,264.05,4.46614918]
[1737716321745,729.0097936,264.06,264.05,4.46614918]
[1737716321939,674.91668681,264.06,264.05,4.46614918]
[1737716322443,657.89528203,264.06,264.05,3.7873]
[1737716322638,578.72001087,264.06,264.05,4.46517953]
[1737716322846,1021.10487451,264.06,264.05,4.46517953]
[1737716323142,992.79667451,264.06,264.05,4.46517953]
[1737716323843,971.26307451,264.06,264.05,4.46517953]
[1737716324043,963.96417451,264.06,264.05,4.46517953]
[1737716324243,949.37697451,264.06,264.05,3.7873]
[1737716324443,949.37697451,264.06,264.05,4.46474279]
[1737716324643,0.76,264.18,264.14,3.7859]
[1737716324841,3.7859,264.15,264.14,485.0]
[1737716326641,3.7859,264.15,264.14,481.0119]
[1737716326847,3.7859,264.15,264.14,434.4473]
[1737716328343,3.7859,264.15,264.14,421.7746363]
[1737716331143,4.5459,264.15,264.14,421.7746363]
[1737716336155,4.5459,264.15,264.14,410.1690363]
[1737716336456,4.5459,264.15,264.14,369.3037363]
[1737716336655,1223.0,264.14,264.12,0.02766197]
[1737716336857,9.50921124,264.13,264.12,164.98846197]
[1737716337050,9.50921124,264.13,264.12,148.93226197]
[1737716339657,3.7861,264.13,264.12,148.93226197]
[1737716341261,0.02810908,264.17,264.12,324.47599827]
[1737716341760,0.02810908,264.17,264.14,3.7859]
[1737716342256,0.02810908,264.17,264.12,324.47599827]
[1737716342464,0.02810908,264.17,264.15,3.7859]
[1737716343862,0.02810908,264.17,264.13,3.7861]
[1737716344062,0.02810908,264.17,264.12,324.47599827]
[1737716345162,0.02810908,264.17,264.15,3.7857]
[1737716346068,3.81370908,264.17,264.15,148.93226197]
[1737716346964,3.81370908,264.17,264.15,140.97176197]
[1737716347159,3.81370908,264.17,264.15,133.01156197]
[1737716348265,0.02810908,264.17,264.15,136.79736197]
[1737716350567,2669.0,264.16,264.15,3.7858]
[1737716350765,0.02810908,264.17,264.15,312.34109827]
[1737716351272,0.02810908,264.17,264.16,3.7857]
[1737716351569,2.5339,264.28,264.15,308.55529827]
[1737716351965,3.7849,264.22,264.17,3.7855]
[1737716352669,0.0255992,264.22,264.17,3.81105715]
[1737716352861,3.785,264.21,264.17,3.81105715]
[1737716355570,3.7854,264.18,264.17,0.02555715]
[1737716355771,3.7854,264.18,264.17,133.03711912]
[1737716358467,3.7854,264.18,264.17,127.31581912]
[1737716358675,3.7854,264.18,264.17,106.42071004]
[1737716358970,3.7854,264.18,264.17,79.35781004]
[1737716359173,6.52804492,264.18,264.17,62.10781004]
[1737716359868,6.52804492,264.18,264.17,43.76021004]
[1737716360074,6.52804492,264.18,264.17,37.81481004]
[1737716363766,3.7854,264.18,264.17,37.81481004]
[1737716364969,6.52692029,264.18,264.17,37.81481004]
[1737716365366,3.7857,264.16,264.15,0.02550029]
[1737716365565,3.7857,264.16,264.15,37.84031033]
[1737716368680,6.52985085,264.16,264.15,37.84031033]
[1737716370577,6.52985085,264.16,264.15,26.14071033]
[1737716373483,3.7857,264.16,264.15,26.14071033]
[1737716375777,3.7856,264.17,264.15,26.14071033]
[1737716377991,0.0255992,264.22,264.15,26.14071033]
[1737716378192,3.7857,264.16,264.15,26.14071033]
[1737716378790,3.7857,264.16,264.15,19.70311033]
[1737716379094,3.786,264.14,264.13,8.337e-05]
[1737716380397,6.52978784,264.14,264.13,8.337e-05]
[1737716389102,6.52978784,264.14,264.13,173.97668337]
[1737716389298,6.52978784,264.14,264.13,154.96128337]
[1737716390001,6.52978784,264.14,264.13,134.41808337]
[1737716390202,6.52978784,264.14,264.13,127.74758337]
[1737716395003,6.52978784,264.14,264.11,0.02893291]
[1737716395004,3.7863,264.12,264.11,0.02893291]
[1737716395205,3.7863,264.12,264.11,127.77651628]
[1737716397805,9.51163144,264.12,264.11,127.77651628]
[1737716398112,3.7863,264.12,264.11,127.77651628]
[1737716398308,5.72533144,264.15,264.11,127.77651628]
[1737716398513,6.52687499,264.14,264.11,127.77651628]
[1737716398814,3.786,264.14,264.11,127.77651628]
[1737716400712,3.7862,264.13,264.11,127.77651628]
[1737716401411,0.02600748,264.16,264.11,127.77651628]
[1737716401606,0.02600748,264.16,264.12,4.944]
[1737716401806,0.02600748,264.16,264.12,7.5703]
[1737716402005,9.51093144,264.18,264.12,135.31788337]
[1737716402208,5.72533144,264.18,264.12,135.31788337]
[1737716402710,7.567,264.32,264.12,135.31788337]
[1737716403012,3.7853,264.19,264.14,3.786]
[1737716403213,3.7853,264.19,264.14,131.53358337]
[1737716403410,3.7853,264.19,264.14,131.56192774]
[1737716403611,3.7852,264.2,264.16,3.7856]
[1737716403812,5.72533144,264.23,264.14,133.50125918]
[1737716404817,0.02412888,264.21,264.14,133.50125918]
[1737716405217,3.7852,264.2,264.15,3.7858]
[1737716405718,3.7853,264.19,264.15,3.7858]
[1737716406217,3.7857,264.16,264.15,122.06168337]
[1737716409720,3153.0,264.15,264.14,0.02834437]
[1737716409921,3.7859,264.15,264.14,122.09002774]
[1737716412320,3.7859,264.15,264.14,100.90832774]
[1737716412521,3.7859,264.15,264.14,86.81502774]
[1737716415524,3.7861,264.13,264.12,0.02643373]
[1737716415723,9.51143144,264.13,264.12,0.02643373]
[1737716416319,9.51143144,264.13,264.12,3.373e-05]
[1737716417523,9.51143144,264.13,264.12,3.373e-05]
[1737716418723,5.74967623,264.15,264.12,3.373e-05]
[1737716419719,0.02434479,264.15,264.12,3.373e-05]
[1737716420925,5.72533144,264.24,264.13,5.72533144]
[1737716421129,5.72533144,264.24,264.13,14.98997491]
[1737716421919,0.0238848,264.21,264.16,0.02897131]
[1737716423128,3.7852,264.2,264.16,0.02897131]
[1737716424029,0.0238848,264.21,264.16,5.75430275]
[1737716424430,3.7844,264.26,264.2,3.7851]
[1737716424630,5.72533144,264.27,264.2,10.64344347]
[1737716425531,0.02403846,264.26,264.21,0.02638202]
[1737716425731,0.02403846,264.26,264.21,6.88472549]
[1737716425929,5.72533144,264.24,264.05,26.38223821]
[1737716426130,5.72533144,264.17,264.05,6.85834347]
[1737716426329,5.72533144,264.17,264.06,13.31153144]
[1737716426529,3.7863,264.12,264.06,13.31153144]
[1737716426730,5.72533144,264.14,264.06,14.44454347]
[1737716427227,0.02407864,264.13,264.07,5.75316186]
[1737716427535,5.72533144,264.21,264.1,5.72533144]
[1737716427733,5.72533144,264.21,264.12,3.7862]
[1737716427935,5.72533144,264.21,264.1,12.58367491]
[1737716428638,3.7854,264.19,264.11,3.7864]
[1737716428838,0.02777692,264.18,264.13,0.02693003]
[1737716429433,5.75310836,264.18,264.13,0.02693003]
[1737716429738,3.7859,264.15,264.13,0.02693003]
[1737716430239,3.7859,264.15,264.13,3.003e-05]
[1737716435843,3.7859,264.15,264.1,6.85834347]
[1737716435844,3.7864,264.11,264.1,7.35e-05]
[1737716439649,3.7864,264.11,264.08,0.02722342]
[1737716439650,3.7867,264.09,264.08,0.02722342]
[1737716449157,0.02900175,264.11,264.08,0.02722342]
[1737716449646,0.02900175,264.11,264.08,5.75010301]
[1737716449848,0.02900175,264.11,264.09,8.6148]
[1737716451352,0.02900175,264.11,264.09,8.6148735]
[1737716454853,3.7866,264.1,264.09,4.8281735]
[1737716458162,0.02900175,264.11,264.1,3.7866]
[1737716458457,5.72287959,264.2,264.1,7.35e-05]
[1737716458657,5.72287959,264.2,264.11,5.72287959]
[1737716459060,5.72287959,264.2,264.12,3.7863]
[1737716459559,0.02849486,264.19,264.13,0.02667284]
[1737716460156,3.7858,264.16,264.13,0.02667284]
[1737716460660,0.02849486,264.19,264.13,0.02667284]
[1737716460862,3.7859,264.15,264.13,0.02667284]
[1737716461265,5.72287959,264.15,264.13,0.02667284]
[1737716462062,3.786,264.14,264.13,0.02667284]
[1737716467770,0.02849486,264.19,264.13,0.02667284]
[1737716467972,5.72287959,264.27,264.18,5.72287959]
[1737716468270,5.72287959,264.3,264.22,3.7848]
[1737716468666,3.7843,264.27,264.22,3.7848]
[1737716468865,6.9488,264.43,264.21,5.72287959]
[1737716468866,5.72287959,264.33,264.21,5.72287959]
[1737716469067,0.02658397,264.3,264.27,5.72287959]
[1737716469267,5.72287959,264.42,264.34,3.7831]
[1737716469467,5.72287959,264.44,264.35,5.72287959]
[1737716469667,41.94164481,264.48,264.35,7.35e-05]
[1737716469865,41.94164481,264.48,264.39,3.7823]
[1737716470275,41.94164481,264.48,264.39,3.7823735]
[1737716470473,0.02625393,264.46,264.41,0.02779028]
[1737716470773,0.02625393,264.46,264.41,0.02786378]
[1737716471668,3.7819,264.43,264.41,0.02786378]
[1737716471870,0.02625393,264.46,264.41,0.02786378]
[1737716473368,8.92309594,264.57,264.41,2.48476378]
[1737716473768,8.92309594,264.57,264.41,2.4569735]
[1737716474472,4.9836,264.62,264.41,2.4569735]
[1737716474473,0.02562117,264.52,264.46,0.02426132]
[1737716474669,8.92309594,264.49,264.46,6.132e-05]
[1737716474871,3.782,264.42,264.41,7.35e-05]
[1737716475173,0.88542511,264.42,264.41,7.35e-05]
[1737716475373,8.92309594,264.49,264.41,7.35e-05]
[1737716475767,3.782,264.43,264.41,7.35e-05]
[1737716475973,3.782,264.43,264.42,0.02870588]
[1737716476172,3.782,264.43,264.42,5.88e-06]
[1737716479480,3.7833,264.33,264.32,175.5437363]
[1737716484083,0.02625554,264.35,264.32,193.0]
[1737716484276,8.92309594,264.49,264.32,193.0]
[1737716484277,8.92309594,264.49,264.32,201.92309594]
[1737716484786,8.92309594,264.49,264.33,5.0634]
[1737716484977,3.7821,264.42,264.33,5.0634]
[1737716485179,8.92309594,264.53,264.37,8.92309594]
[1737716485382,0.02448889,264.4,264.37,8.92309594]
[1737716485584,8.92309594,264.53,264.37,8.92309594]
[1737716485784,3.7817,264.44,264.39,3.7823]
[1737716485979,3.7817,264.44,264.37,8.92309594]
[1737716486682,0.02434603,264.43,264.38,0.02841924]
[1737716487174,3.7811,264.49,264.38,193.02841924]
[1737716487378,8.92309594,264.53,264.38,193.02841924]
[1737716487575,8.92309594,264.49,264.38,193.02841924]
[1737716488279,3.7824,264.39,264.38,193.02841924]
[1737716493281,8.92309594,264.53,264.38,193.02841924]
[1737716493478,8.92309594,264.57,264.38,201.95151518]
[1737716493679,8.92309594,264.57,264.38,201.92309594]
[1737716493881,3.7814,264.46,264.45,0.024476]
[1737716494282,3.7814,264.46,264.45,193.024476]
[1737716494986,3.781,264.49,264.45,193.024476]
[1737716496184,3.7808,264.51,264.45,196.806076]
[1737716496583,3.7806,264.52,264.47,3.7813]
[1737716496780,3.7806,264.52,264.47,196.7813]